Workbook

Sheet 정산
B3: 현, 정산 시 사용 메뉴
N5: 상품정산
N6: 배송비정산
N7: 정산확정관리
N8: 업체별정산
N9: PG입금정산(추가. TID기준으로 주문데이터랑 비교)
B15: ① 배송비 정산내역 조회 / 배송비 정산확정 조회 -> vendorname 으로도 조회 가능하도록
B16: ② 상품별정산내역조회 -> 정산예정등록 -> 정산확정 -> 정산완료조회 -> [상품별정산내역조회 -> 정산완료조회] 로 과정 단순화 필요
B17: ③ 실제 계산서 발행 금액 조회 가능하도록
B18: ④ 엑셀 피벗 등 수기로 만들 던 정산서 및 결제리스트 엑셀로 다운 가능하도록
B19: ⑤ 엑셀 / 수기로 관리되는 기타차감 / 미수금 내역을 SCM 안에서 정확하게 관리되도록
B20: ⑥ 수기로 작성되던 업체별 지급리스트를 바로 다운 가능하도록
B23: 협력사 등록 시 계좌정보 세분화 및 계산서 email / 전자계약 여부 체크
T25: <추가요청 사항>
T27: ① 공급처 등록에 등록하던 은행계좌정보를 [협력사 등록] 등록하도록!(필수)
T28: -> 은행 / 계좌번호 / 예금주 세분화 등록
T30: ② [협력사 등록] 시, 계산서 발행 email 등록 필수
T32: ③ [협력사 등록] 시, 전자계약 여부 체크

Sheet 상품별정산내역조회
B1: * 정산마감관리 화면 필요 (확정/해제 기능 필요). 조회결과의 항목 값들을 리스트 형태로 표출해 주고. 정산담당자 권한을 분리해서 "정산관리자" 추가. 확정 시 "전자계약여부" 저장해야 함
B2: 1. 상품별 정산내역 조회
B4: 1-1. 상품별 정산내역 조회 화면 구성요청
B5: 정산 raw 파일을 다운 받는 메뉴.
B6: 기존에는 [정산예정등록] -> [정산확정] 메뉴에서 각각 정산 예정 등록 및 정산 확정 처리 필요.
B7: 이후에는 raw 파일 다운 받는 메뉴에서(현 상품별정산내역조회) 정산 확정처리까지 가능토록.
B31: * 검색조건: 출고기간, 공급업체/브랜드, 유통구분, 정산주기(15일정산/월말정산)
B33: ① Vendorname 별로도 조회 가능토록, [협력사 별 조회] 추가
B34: : ex) [한세드림]으로 조회 -> vendorname 한세드림으로 등록된 모든 내역 조회 / 하단 요약 내용 조회
B36: ② 세금계산서 발행금액(VAT포함) -> 수식 변경 : =round( 수수료 - 자사쿠폰분담액 , 0)
B38: ③ 현재의 [상품별정산내역조회] 에서 바로 [정산확정] 처리 가능하도록.
B39: : 정산 기준일자 체크 후, 정산확정 처리 가능토록.
B40: : 기존에는 발급상태 -> 정산대기상태 -> 정산완료 / 변경 이후에는 발급상태 -> 정산완료
B45: 1-2. 상품별 정산내역 조회 raw파일
B47: 상품별정산내역조회
B48: 항목 | C48: 값 | F48: 추가 or 수정
B49: SettlementNo | C49: 61855163
B50: OrderNo | C50: 19217971 | D50: 온라인주문번호
B51: OrderGUID | C51: f2b1f0ac-2629-4ea3-8f36-e5a692fa826b
B52: CustomerName | C52: 김연홍
B53: VendorNo | C53: 2548 | D53: 협력사번호
B54: VendorName | C54: (주) 패션포유 | D54: 협력사명
B55: ProviderNo | C55: 2839 | D55: 공급처번호(공급업체코드)
B56: ProviderName | C56: (주) 패션포유 | D56: 공급처명
B57: DeliveryUnitNo | C57: 7254 | D57: 출고처번호
B58: DeliveryUnitName | C58: (주)패션포유_BNP | D58: 출고처명
B59: DistributionCd | C59: 입점 | D59: 유통구분(입점-위탁)
B60: SettleTypeCd | C60: 월말정산 | D60: 정산주기
B61: DateSales | C61: 2020-09-01T08:58:31.76+09:00 | D61: 주문일시
B62: IssueTypeCd | C62: 정상 | D62: 결제/취소(판매구분:판매/환입(취소/품절취소/반품/교환)
B63: ProductNo | C63: 15540069 | D63: 상품번호
B64: ProductCode | C64: 14163793 | D64: 상품코드
B65: ProductName | C65: [지오지아] 마이크로 패턴 슬랙스 팬츠 I (ABY2PP1102) | D65: 상품명
B66: BrandName | C66: ZIOZIA | D66: 브랜드명
B67: FirstCategoryName | C67: 남성패션/슈즈 | D67: 카테고리 -> 담당MD로 변경
B68: SKUCode | C68: 14163793-6 | D68: 단품코드
B69: SKUValue | C69: GR/88 | D69: 사이즈코드
B70: ModelNo | C70: ABY2PP1102
B71: 판매가격 | C71: 19900 | D71: 현재판매가
B72: 수량 | C72: 1 | D72: 수량
B73: 판매총액 | C73: 19900 | D73: 현재판매가*수량
B74: 쿠폰할인총액 | C74: 0 | D74: 쿠폰사용금액(즉시사용쿠폰금액+상품쿠폰금액+주문서쿠폰금액)
D75: 즉시사용쿠폰금액
D76: 상품쿠폰금액
D77: 주문서쿠폰금액
D78: 포인트사용금액
D79: 다다익선할인금액
B80: 자사쿠폰분담액 | C80: 0 | D80: 자사쿠폰분담액
B81: 협력사쿠폰분담액 | C81: 0 | D81: 업체쿠폰분담액
B82: 실판매가격 | C82: 19900 | D82: 실판매금액(쿠폰, 다다익선만 차감): 상품권 포함, 포인트 포함
B83: 상품총액 | C83: 19900 | D83: 실판매금액 * 수량
B84: Enuri | C84: 0
B85: Allotment | C85: 0
B86: PointSubTotal | C86: 787
B87: 수수료율 | C87: =수수료/판매총액 | D87: 판매수수료율
B88: 수수료 | C88: 2786 | D88: round(판매총액 * 판매수수료율,0)
B89: 정산대상액 | C89: 17114 | D89: 상품총액 - 수수료 + 자사쿠폰분담액
B90: 계산서 발행 합계액=a | C90: =round( 수수료-자사쿠폰분담액 , 0 ) ( < 0 인 경우, 0으로 표기)
B91: 계산서 발행 공급가액=c | C91: =int(a/1.1) | D91: round(a/1.1)
B92: 계산서 발행 세액=b | C92: =a-c
B93: MarginSurTax | C93: 253.2727273
B94: Amount | C94: 17114
B95: SaleStatusCd | C95: 매출확정
B96: SettleStatusCd | C96: 발급
B97: SettleDate
B98: CategoryPath | C98: 남성패션/슈즈|팬츠|캐주얼 팬츠|면바지
B99: ChannelCd | C99: mist_ios
B100: PartnerPrice | C100: 개발완료 | D100: 샵링커를 통해 받을 수 있는지 확인? (제공 안 되면 수기 관리해야 함)
B101: IFOrderNo | C101: 개발완료 | D101: 제휴몰주문번호
B102: 판매가-제휴가 | C102: 개발완료
B103: 은행 | C103: 협력사 등록시 등록한 은행명
B104: 계좌 | C104: 협력사 등록시 등록한 계좌번호
B105: 예금주 | C105: 협력사 등록시 등록한 예금주

Sheet 정산확정조회
B2: 2. 정산확정 조회(현 메뉴 이름 정산완료조회)
B4: 현재 메뉴 이름 [정산완료조회] -> [정산확정조회]로 화면과 통일되도록 필요.
B5: 2-1. 정산확정 조회 화면 구성요청
B28: ① Vendorname 별로도 조회 가능토록, [협력사 별 조회] 추가
B29: : ex) [한세드림]으로 조회 -> vendorname 한세드림으로 등록된 모든 내역 조회 / 하단 요약 내용 조회
B31: ② 세금계산서 발행금액(VAT포함) -> 수식 변경 : = round(수수료-자사분담액, 0)
B33: ③ 공급가 총액 -> 수식 변경 : = int(A/1.1)
B35: ④ 세액 총액 -> 수식 변경 : = A - B
B37: ⑤ [정산서 다운] 메뉴 생성 -> 정산서(참고) sheet 추가하였습니다.
B39: ⑥ 미수금 및 기타차감 금액 요약 표시
B43: 2-2. 정산확정 조회 raw파일(세금계산서용 엑셀다운로드(추가버전)
B45: 정산확정조회 -> 세금계산서용 엑셀다운로드(추가버전): 노란색 부분만 출력되면 됨).
B46: 항목 | C46: 값 | D46: 수식수정 | G46: 추가 or 수정
B47: 작업종류 | C47: 11
B48: 역발행여부 | C48: F
B49: 작성일 | C49: 2020-09-30 | E49: 월말기준
B50: 총공급가액 | C50: 4136
B51: 총세액 | C51: 414
B52: 거래항목시작 | C52: S
B53: 거래일자 | C53: 09-30
B54: 품목 | C54: 상품판매 수수료 | E54: 고정값
B55: 규격
B56: 수량
B57: 단가
B58: 공급가액 | C58: 4136 | D58: =int(현금거래액/1.1) | E58: ROUND(현금거래액/1.1)
B59: 세액 | C59: 414 | D59: =현금거래액-공급가액
B60: 거래항목종료 | C60: E
B61: 현금거래액 | C61: 4550 | D61: =round( 수수료-자사쿠폰분담액 , 0 ) ( < 0 인 경우, 0으로 표기)
B62: 수표거래액
B63: 어음거래액
B64: 외상미수금
B65: 영수/청구 | C65: 1
B66: 세율 | C66: 0
B67: 공급자아이디 | C67: S
B68: 아이디
B69: 공급자 | C69: 1168132499
B70: 공급상호 | C70: 아이스타일이십사주식회사
B71: 공급대표자명 | C71: 김기호
B72: 공급업태 | C72: 도소매업 소매업
B73: 공급업종 | C73: 기타직물 전자상거래
B74: 공급자주소 | C74: 서울 영등포구 여의도동
B75: 공급자상세주소 | C75: 15-11 금영빌딩 5층
B76: 공급담당자 | C76: 조정상
B77: 공급자부서 | C77: 경영지원팀
B78: 공급자전화번호 | C78: 02-3270-7622
B79: 공급자이메일 | C79: jscho@istyle24.com
B80: 공급받는자 아이디 구분
B81: 아이디1
B82: 공급받는자 사업자 등록번호 | C82: 1388129408
B83: 상호 | C83: 주식회사 트랜드이십일
B84: 대표자명 | C84: 이해균
B85: 업태 | C85: 도매
B86: 업종 | C86: 의류
B87: 주소 | C87: 경기도 하남시 항동
B88: 상세주소 | C88: 경기도 하남시 항동
B89: 담당자 | C89: 이근용 | E89: 정산담당자
B90: 부서
B91: 전화번호 | C91: 010-9213-7854 | E91: 정산담당자연락처
B92: 이메일 | C92: 444ask@naver.com | D92: 협력사 등록 시 등록한 [계산서email] 값
B93: 문서번호 | C93: 1168132499_20200930_1
B94: 비고 | C94: 상품판매액 35000.00
B95: 세금계산서발행금액 | C95: 4550 | D95: =round( 수수료-자사쿠폰분담액 , 0 ) ( < 0 인 경우, 0으로 표기)
B103: 2-3. 정산서 다운 raw파일 (새로 생성) => 업체별정산 화면: 정산확정 시 "공급업체의 전자계약여부" 저장해야 함. 엑셀다운로드 필요함
B105: 항목 | C105: 값 | D105: 수식(참고)
B106: 업체명 | C106: vendorname
B107: 전자계약 | C107: 조회 일시 기준, 협력사 정보에 전자계약 체크내용
B108: 업체 사업자등록번호 | C108: 협력사 사업자등록번호
B109: 정산기준일자 | C109: 정산기준일자 | E109: =>정산주기
B110: 수량 | C110: 정산확정
B111: 상품총액 | C111: 정산확정
B112: 수수료 | C112: 정산확정
B113: 쿠폰할인총액 | C113: 정산확정
B114: 자사쿠폰분담액 | C114: 정산확정
B115: 협력사쿠폰분담액 | C115: 정산확정
B116: 계산서발행금액 | C116: 정산확정 | D116: =round( 수수료-자사쿠폰분담액 , 0 ) ( < 0 인 경우, 0으로 표기)
B117: 공급가액 | C117: 정산확정 | D117: =INT(계산서발행금액 / 1.1)
B118: 세액 | C118: 정산확정 | D118: =계산서발행금액 - 공급가액
B119: 배송비 | C119: 정산확정
B120: 기타차감 | C120: 기타차감메뉴(sheet 참고) | D120: 기타차감메뉴에서 업데이트 한 데이터 중, 해당 업체에 해당 월 발생 금액이 있는 경우 | E120: 엑셀업로드 기능 필요. 화면은 (기타차감 메뉴 sheet 참조) '-> 정산이 발생하지 않은 업체도 해당 정산월에 기타차감 금액이 있으면, 해당 업체 데이터 한줄 생성하여, 수량 0, 상품총액 0, 수수료 0 …………….., 기타차감 @ , 지급금액 -@ 이런 식으로 데이터를 불러 옵니다. => 수정할 수 있도록 한다.
B121: 지급금액 | C121: 정산확정의 정산대상액 + 배송비 - 기타차감
B122: 미수금 | C122: 미수금메뉴(sheet 참고) | D122: 지급금액이 + 금액 이고, 해당 업체에 미수금 잔액이 존재할 때, 지급금액을 넘지 않는만큼 금액을 불러온다. / 불려온 금액은 미수금 메뉴에서 회수액으로 업데이트 된다. | E122: 엑셀로 업로드한 데이터를 보여준다 (미수금 메뉴 SHEET 참조). 수정할 수 있도록 한다.
B123: 총 지급금액 | C123: =지급금액-미수금 | D123: 0보다 크거나 같음
B124: 상태 | C124: 우선조건 : 전자계약 = N -> [보류] 차선조건 : 전자계약 = Y and 지급금액 <0 -> [미수금] / 그 외 [정상]
B125: 은행 | C125: 협력사 등록시 등록한 은행명
B126: 계좌 | C126: 협력사 등록시 등록한 계좌번호
B127: 예금주 | C127: 협력사 등록시 등록한 예금주
B128: email | C128: 협력사 등록시 등록한 계산서email

Sheet 미수금 메뉴
B2: 3. 미수금 메뉴 => 업체별정산 화면에서 처리하는 것으로 이 SHEET는 삭제
B4: 3-1. 업체별 미수금 관리
C7: 메뉴구성
C9: 협력사 | E9: 검색
C10: 사업자등록번호 | E10: 검색
C11: 발생 월 | E11: 검색
D13: 조회 | I13: 엑셀 업로드
I14: 엑셀 다운로드
C15: 요약페이지-----------------------------------------------------------------------------------------
C17: 협력사 | D17: 사업자등록번호 | E17: 발생 월 | F17: 발생금액 | G17: 회수 액 | H17: 잔액
H18: 발생금액-회수액
C22: 하단 합계 표시------------------------------------------------------------------------------------
C23: 총 발생 금액
C24: 총 회수액
C25: 총 잔액
B30: ① 업체별 미수금 엑셀 업로드 관리
B32: 업체코드 | C32: 총미수금액
B35: 위 양식으로 개발 이전까지 쌓여있던 미수금 잔액 업로드 / 입금으로 회수한 미수금액 업로드
B38: ② 업체별 정산금에서 차감된 미수금 -> 회수 월 / 회수 액에 업데이트
C40: ex)조회화면 | D40: 협력사 | E40: 사업자등록번호 | F40: 발생 월 | G40: 발생금액 | H40: 회수 액 | I40: 잔액
D41: 인터파크 | E41: 222-22-22222 | F41: 2018-05 | G41: 5000 | H41: 5000 | I41: =+G41-H41 -> 0
D42: 인터파크 | E42: 222-22-22222 | F42: 2019-06 | G42: 7000 | H42: 6000 | I42: =+G42-H42 -> 1000
H44: -> 클릭 시, 회수 월 / 회수 금액 상세 확인 가능
I46: 회수 월 | J46: 회수 금액
I47: 2020-05 | J47: 1000
I48: 2020-06 | J48: 5000
B50: ③ 엑셀 다운로드 시
B53: 협력사 | C53: 사업자등록번호 | D53: 발생 월 | E53: 발생금액 | F53: 회수 월 | G53: 회수 액 | H53: 잔액
B54: 인터파크 | C54: 222-22-22222 | D54: 2018-05 | E54: 5000 | F54: 2020-05 | G54: 5000 | H54: =+E54-G54 -> 0
B55: 인터파크 | C55: 222-22-22222 | D55: 2019-06 | E55: 7000 | F55: 2020-05 | G55: 1000 | H55: =+E55-G55 -> 6000
F56: 2020-06 | G56: 5000 | H56: =+H55-G56 -> 1000
B60: ④ [정산확정조회] 시 상태값 미수금 -> 데이터 연동
B62: 협력사 | C62: 사업자등록번호 | D62: 발생 월 | E62: 발생금액 | F62: 회수 월 | G62: 회수 액 | H62: 잔액
B63: 인터파크 | C63: 222-22-22222 | D63: 정산 월 | E63: 미수금 금액(총 지급금액)

Sheet 기타차감 메뉴
B2: 4. 기타차감 메뉴 => 업체별정산 화면에서 처리하는 것으로 이 SHEET는 삭제
B4: 4-1. 업체별 기타차감 관리 (CS팀에서 업로드 가능하도록)
C7: 메뉴구성
C9: 협력사 | E9: 검색
C10: 사업자등록번호 | E10: 검색
C11: 발생 월 | E11: 검색
D13: 조회
I14: 엑셀 업로드
C15: 요약페이지-----------------------------------------------------------------------------------------
C17: 협력사 | D17: 사업자등록번호 | E17: 발생월 | F17: 주문번호 | G17: 발생금액 | H17: 사유
C18: 업체명 | D18: 업체 정보에 있는 사업자등록번호 끌어오기 | E18: 발생월 | F18: 주문번호 | G18: 보상액 | H18: 텍스트
F19: -> 클릭시 상세 주문내용 확인
C22: 하단 합계 표시------------------------------------------------------------------------------------
C23: 조회 월
C24: 차감 금액
B30: ① 업체별 기타차감 엑셀 업로드 관리
B32: ex) 고객만족팀에서 관리하는 기타차감 파일
B34: 발생월 | C34: 아이디 | D34: 고객명 | E34: 주문번호 | F34: 카테고리 | G34: 업체명 | H34: 업체담당자 | I34: 주문상품 | J34: 상품가격 | K34: 보상액 | L34: 사유
B35: 2020-06 | C35: cresio | D35: 김미진 | E35: 19019953 | F35: 여성 | G35: 업체코드 (주) 인터파크INT | H35: 임소영 | I35: [로엠] WY 셔츠형 베이직 블라우스 - RMBL738101_39 외 4건 | J35: 37900 | K35: 2500 | L35: 19019989 와 합포장 배송건이나 물류단위별로 배송료가 부과됨 과결제 배송비 2,500원 고객환불
B36: 2020-06 | C36: whitepotato | D36: 정지은 | E36: 19018713 | F36: 여성 | G36: 업체코드 (주) 인터파크INT | H36: 임소영 | I36: [로엠] WY 스퀘어넥 블라우스 - RMBL738RQ5_39 외 5건 | J36: 33000 | K36: 2500 | L36: 합포장 배송건이나 물류 단위별로 배송료가 부과됨 과결제 배송비 2,500원 고객환불
B37: 2020-06 | C37: whitepotato | D37: 정지은 | E37: 19037826 | F37: 여성 | G37: 업체코드 (주) 인터파크INT | H37: 임소영 | I37: [머스트비] Y 어텀 팬츠 LMKFCPA509P 외 4건 | J37: 33020 | K37: 5000 | L37: 합포장 배송건이나 물류 단위별로 배송료가 부과됨 무료배송 적용으로 5,000원 고객환불
B40: 위 양식으로 월별 / 업체별 보상액(기타차감액) 업로드

Sheet 배송비 메뉴
B2: 5. 배송비정산내역조회 / 배송비정산확정조회
B4: Vendorname만으로도 조회 가능하도록
B6: 배송비 정산내역조회
B29: 배송비 정산확정조회
B48: ① Vendorname 별로도 조회 가능토록, [협력사 별 조회] 추가
B49: : ex) [한세드림]으로 조회 -> vendorname 한세드림으로 등록된 모든 내역 조회 / 하단 요약 내용 조회
B51: * 하위 4개의 항목만 보여주면 됨
B52: 업체코드
B53: 업체명
B54: 유통구분
B55: 배송비금액

Sheet 정산서(참고)
B3: 엑셀 정산 시 완성하는 정산서(참고)
C7: 2020년 9월 상품판매대금 및 배송비 정산 리스트-입점(YES24)
C8: 데이터출처 :
C9: 상품별정산내역조회-Vendorname | D9: 영업팀 전자계약완료 파일과 사업자번호 기준으로 vlookup | F9: 상품별정산내역조회 | G9: 상품별정산내역조회 | H9: 상품별정산내역조회 | I9: 배송배정산완료조회 | J9: 회계장부 미수금 | K9: 상품별정산내역조회 | L9: 상품별정산내역조회 | M9: 상품별정산내역조회 | N9: CS 수기차감 자료 | O9: 정산확정조회-세금계산서용 엑셀다운로드(추가버전) | P9: 정산확정조회-세금계산서용 엑셀다운로드(추가버전) | Q9: 정산확정조회-세금계산서용 엑셀다운로드(추가버전)
B10: no | C10: 거 래 처 | D10: 전자계약 | E10: 사업자등록번호 | F10: 판매수량 | G10: 실판매매출(상품총액) | H10: 수 수 료(차감) | I10: 배 송 비 | J10: 미수금회수 | K10: 쿠폰사용금액 | L10: 업체분담분 | M10: 자사분담분 | N10: 기타공제 | O10: 계산서발행액 | P10: 공급가액 | Q10: 세액 | R10: 검산
B11: 1 | C11: (주) 솔트라이트아이엔씨 | D11: =VLOOKUP(E11,[1]전자계약!A:B,2,FALSE) -> 일괄 전자계약 | E11: 1208711710 | F11: 1 | G11: 15900 | H11: 2385 | K11: 0 | L11: 0 | M11: 0 | O11: =ROUND(H11-M11,0) -> 2385 | P11: =INT(O11/1.1) -> 2168 | Q11: =+O11-P11 -> 217 | R11: =ROUND(+G11+I11-J11-O11-N11,0) -> 13515
B12: 2 | C12: (주) 에스엠어페럴 | D12: =VLOOKUP(E12,[1]전자계약!A:B,2,FALSE) -> 일괄 전자계약 | E12: 1278652409 | F12: 8 | G12: 148000 | H12: 22200 | I12: 2500 | K12: 0 | L12: 0 | M12: 0 | O12: =ROUND(H12-M12,0) -> 22200 | P12: =INT(O12/1.1) -> 20181 | Q12: =+O12-P12 -> 2019 | R12: =ROUND(+G12+I12-J12-O12-N12,0) -> 128300
B13: 3 | C13: (주) 에이치엔디컴퍼니 | D13: =VLOOKUP(E13,[1]전자계약!A:B,2,FALSE) -> 일괄 전자계약 | E13: 1278650769 | F13: 2 | G13: 27800 | H13: 4170 | K13: 0 | L13: 0 | M13: 0 | O13: 4170 | P13: 3790 | Q13: 380 | R13: 23630
B14: 4 | C14: (주) 엠케이트렌드_지알스토어 | D14: =VLOOKUP(E14,[1]전자계약!A:B,2,FALSE) -> 일괄 전자계약 | E14: 2038157509 | F14: 0 | G14: -34100 | H14: -8184 | K14: 0 | L14: 0 | M14: 0 | O14: -8184 | P14: -7440 | Q14: -744 | R14: -25916
B15: 5 | C15: (주) 엠케이트렌드 | D15: =VLOOKUP(E15,[1]전자계약!A:B,2,FALSE) -> 일괄 전자계약 | E15: 2038157509 | F15: 18401 | G15: 416993260 | H15: 148985550 | K15: 8679740 | L15: 0 | M15: 8679740 | O15: 140305810 | P15: 127550736 | Q15: 12755074 | R15: 276687450
B16: 6 | C16: (주) 와이아이씨컴퍼니 | D16: =VLOOKUP(E16,[1]전자계약!A:B,2,FALSE) -> 일괄 전자계약 | E16: 1208724665 | F16: 179 | G16: 4246935 | H16: 575505 | I16: 120000 | K16: 179970 | L16: 119569.7 | M16: 60400.3 | O16: 515105 | P16: 468277 | Q16: 46828 | R16: 3851830
B17: 7 | C17: (주) 인터파크 | D17: =VLOOKUP(E17,[1]전자계약!A:B,2,FALSE) -> 일괄 전자계약 | E17: 2208147821 | F17: 1799 | G17: 23308452 | H17: 2566664 | I17: 957500 | K17: 2358200 | L17: 2360650 | M17: -2450 | O17: 2569114 | P17: 2335558 | Q17: 233556 | R17: 21696838
B18: 8 | C18: (주) 제이케이컴퍼니 | D18: =VLOOKUP(E18,[1]전자계약!A:B,2,FALSE) -> 일괄 전자계약 | E18: 6068193683 | F18: 3 | G18: 98400 | H18: 14760 | I18: 2500 | K18: 0 | L18: 0 | M18: 0 | O18: 14760 | P18: 13418 | Q18: 1342 | R18: 86140
B19: 9 | C19: (주) 패션포유 | D19: =VLOOKUP(E19,[1]전자계약!A:B,2,FALSE) -> 일괄 전자계약 | E19: 2098159257 | F19: 64 | G19: 1034900 | H19: 145394 | I19: 55000 | K19: 12900 | L19: 12900 | M19: 0 | O19: 145394 | P19: 132176 | Q19: 13218 | R19: 944506
B20: 10 | C20: (주) 피앤에프컴퍼니 | D20: =VLOOKUP(E20,[1]전자계약!A:B,2,FALSE) -> 일괄 전자계약 | E20: 2068643692 | F20: 9 | G20: 197890 | H20: 36000 | I20: 7500 | K20: 2110 | L20: 2110 | M20: 0 | O20: 36000 | P20: 32727 | Q20: 3273 | R20: 169390
B21: 11 | C21: (주)SG세계물산 | D21: =VLOOKUP(E21,[1]전자계약!A:B,2,FALSE) -> 일괄 전자계약 | E21: 1198101073 | F21: 277 | G21: 2404000 | H21: 310773 | I21: 15000 | K21: 0 | L21: 0 | M21: 0 | O21: 310773 | P21: 282520 | Q21: 28253 | R21: 2108227
B22: 12 | C22: (주)규 | D22: =VLOOKUP(E22,[1]전자계약!A:B,2,FALSE) -> 일괄 전자계약 | E22: 1818100517 | F22: 1 | G22: 30300 | H22: 5454 | I22: 2500 | K22: 0 | L22: 0 | M22: 0 | O22: 5454 | P22: 4958 | Q22: 496 | R22: 27346
B23: 13 | C23: (주)대성아이엔지 | D23: =VLOOKUP(E23,[1]전자계약!A:B,2,FALSE) -> 일괄 전자계약 | E23: 1198623714 | F23: 3 | G23: 37300 | H23: 9465 | I23: 5000 | K23: 0 | L23: 0 | M23: 0 | O23: 9465 | P23: 8604 | Q23: 861 | R23: 32835
B24: 14 | C24: (주)미래바이텍 | D24: =VLOOKUP(E24,[1]전자계약!A:B,2,FALSE) -> 일괄 전자계약 | E24: 1238138448 | F24: 1 | G24: 49000 | H24: 9800 | K24: 0 | L24: 0 | M24: 0 | O24: 9800 | P24: 8909 | Q24: 891 | R24: 39200
B25: 15 | C25: (주)비케이커머스 | D25: =VLOOKUP(E25,[1]전자계약!A:B,2,FALSE) -> 일괄 전자계약 | E25: 2048653404 | F25: 8 | G25: 270200 | H25: 47650 | K25: 0 | L25: 0 | M25: 0 | O25: 47650 | P25: 43318 | Q25: 4332 | R25: 222550
B26: 16 | C26: (주)빌리버스 | D26: =VLOOKUP(E26,[1]전자계약!A:B,2,FALSE) -> 일괄 전자계약 | E26: 1058708647 | F26: 23 | G26: 587000 | H26: 117400 | I26: 32500 | K26: 0 | L26: 0 | M26: 0 | O26: 117400 | P26: 106727 | Q26: 10673 | R26: 502100
B27: 17 | C27: (주)새김어페럴 | D27: =VLOOKUP(E27,[1]전자계약!A:B,2,FALSE) -> 일괄 전자계약 | E27: 2178118320 | F27: 1 | G27: 12900 | H27: 2322 | I27: 2500 | K27: 0 | L27: 0 | M27: 0 | O27: 2322 | P27: 2110 | Q27: 212 | R27: 13078
B28: 18 | C28: (주)스타일에스 | D28: =VLOOKUP(E28,[1]전자계약!A:B,2,FALSE) -> 일괄 전자계약 | E28: 2858100181 | F28: 1 | G28: 26900 | H28: 5380 | K28: 0 | L28: 0 | M28: 0 | O28: 5380 | P28: 4890 | Q28: 490 | R28: 21520
B29: 19 | C29: (주)씨스리글로벌 | D29: =VLOOKUP(E29,[1]전자계약!A:B,2,FALSE) -> 일괄 전자계약 | E29: 2018187273 | F29: 54 | G29: 471510 | H29: 84964 | I29: 10000 | K29: 46090 | L29: 46090 | M29: 0 | O29: 84964 | P29: 77240 | Q29: 7724 | R29: 396546
B30: 20 | C30: (주)아이엔에프아이엑스 | D30: =VLOOKUP(E30,[1]전자계약!A:B,2,FALSE) -> 일괄 전자계약 | E30: 1058691232 | F30: 107 | G30: 2086840 | H30: 364920 | I30: 111000 | K30: -32140 | L30: -3450 | M30: -28690 | O30: 393610 | P30: 357827 | Q30: 35783 | R30: 1804230
B31: 21 | C31: (주)에프알제이 | D31: =VLOOKUP(E31,[1]전자계약!A:B,2,FALSE) -> 일괄 전자계약 | E31: 2138636694 | F31: 10265 | G31: 109035050 | H31: 38221558 | K31: 169400 | L31: 0 | M31: 169400 | O31: 38052158 | P31: 34592870 | Q31: 3459288 | R31: 70982892
B32: 22 | C32: (주)엠도씨 | D32: =VLOOKUP(E32,[1]전자계약!A:B,2,FALSE) -> 일괄 전자계약 | E32: 1058716360 | F32: 3 | G32: 104000 | H32: 26000 | K32: 0 | L32: 0 | M32: 0 | O32: 26000 | P32: 23636 | Q32: 2364 | R32: 78000
B33: 23 | C33: (주)올진컴퍼니 | D33: =VLOOKUP(E33,[1]전자계약!A:B,2,FALSE) -> 일괄 전자계약 | E33: 7868800418 | F33: 15 | G33: 215100 | H33: 35224 | I33: 7500 | K33: 0 | L33: 0 | M33: 0 | O33: 35224 | P33: 32021 | Q33: 3203 | R33: 187376
B34: 24 | C34: (주)월비통상 | D34: =VLOOKUP(E34,[1]전자계약!A:B,2,FALSE) -> 일괄 전자계약 | E34: 2068165575 | F34: 1 | G34: 29500 | H34: 3835 | I34: 2500 | K34: 0 | L34: 0 | M34: 0 | O34: 3835 | P34: 3486 | Q34: 349 | R34: 28165
B35: 25 | C35: (주)이지바이 | D35: =VLOOKUP(E35,[1]전자계약!A:B,2,FALSE) -> 일괄 전자계약 | E35: 5308100418 | F35: 13 | G35: 173600 | H35: 22568 | I35: 2500 | K35: 0 | L35: 0 | M35: 0 | O35: 22568 | P35: 20516 | Q35: 2052 | R35: 153532
B36: 26 | C36: (주)이투컴 | D36: =VLOOKUP(E36,[1]전자계약!A:B,2,FALSE) -> 일괄 전자계약 | E36: 1208646338 | F36: 1 | G36: 8900 | H36: 1780 | I36: 2500 | K36: 0 | L36: 0 | M36: 0 | O36: 1780 | P36: 1618 | Q36: 162 | R36: 9620
B37: 27 | C37: (주)제이브로스 | D37: =VLOOKUP(E37,[1]전자계약!A:B,2,FALSE) -> 일괄 전자계약 | E37: 2118836824 | F37: 2 | G37: 49600 | H37: 8928 | I37: 6000 | K37: 0 | L37: 0 | M37: 0 | O37: 8928 | P37: 8116 | Q37: 812 | R37: 46672
B38: 28 | C38: (주)조이컴퍼니 | D38: =VLOOKUP(E38,[1]전자계약!A:B,2,FALSE) -> 일괄 전자계약 | E38: 5048614543 | F38: 1 | G38: 32900 | H38: 8225 | I38: 2500 | K38: 0 | L38: 0 | M38: 0 | O38: 8225 | P38: 7477 | Q38: 748 | R38: 27175
B39: 29 | C39: (주)컨트롤케이앤제이 | D39: =VLOOKUP(E39,[1]전자계약!A:B,2,FALSE) -> 일괄 전자계약 | E39: 2158795250 | F39: 146 | G39: 2141930 | H39: 614577 | I39: 110000 | K39: 255670 | L39: 255670 | M39: 0 | O39: 614577 | P39: 558706 | Q39: 55871 | R39: 1637353
B40: 30 | C40: (주)코스메이트 | D40: =VLOOKUP(E40,[1]전자계약!A:B,2,FALSE) -> 일괄 전자계약 | E40: 1098606663 | F40: 3 | G40: 35600 | H40: 4350 | K40: 0 | L40: 0 | M40: 0 | O40: 4350 | P40: 3954 | Q40: 396 | R40: 31250
B41: 31 | C41: (주)패션지오 | D41: =VLOOKUP(E41,[1]전자계약!A:B,2,FALSE) -> 일괄 전자계약 | E41: 1108172945 | F41: 259 | G41: 3092980 | H41: 515180 | I41: 12500 | K41: 107420 | L41: 107420 | M41: 0 | O41: 515180 | P41: 468345 | Q41: 46835 | R41: 2590300
B42: 32 | C42: 365BUY | D42: =VLOOKUP(E42,[1]전자계약!A:B,2,FALSE) -> 일괄 전자계약 | E42: 5021775155 | F42: 2 | G42: 27800 | H42: 4170 | I42: 2500 | K42: 0 | L42: 0 | M42: 0 | O42: =ROUND(H42-M42,0) -> 4170 | P42: =INT(O42/1.1) -> 3790 | Q42: =+O42-P42 -> 380 | R42: =ROUND(+G42+I42-J42-O42-N42,0) -> 26130
B43: 33 | C43: ACT company | D43: =VLOOKUP(E43,[1]전자계약!A:B,2,FALSE) -> 일괄 전자계약 | E43: 1061093752 | F43: 1 | G43: 8900 | H43: 1157 | I43: 2500 | K43: 0 | L43: 0 | M43: 0 | O43: 1157 | P43: 1051 | Q43: 106 | R43: 10243
B44: 34 | C44: addamam | D44: =VLOOKUP(E44,[1]전자계약!A:B,2,FALSE) -> 일괄 전자계약 | E44: 3148662952 | F44: 1 | G44: 13900 | H44: 2502 | I44: 2500 | K44: 0 | L44: 0 | M44: 0 | O44: 2502 | P44: 2274 | Q44: 228 | R44: 13898
B45: 35 | C45: HU컴퍼니 | D45: =VLOOKUP(E45,[1]전자계약!A:B,2,FALSE) -> 일괄 전자계약 | E45: 1040137937 | F45: 14 | G45: 256700 | H45: 27981 | I45: 15000 | K45: 0 | L45: 0 | M45: 0 | O45: 27981 | P45: 25437 | Q45: 2544 | R45: 243719
B46: 36 | C46: M. K | D46: =VLOOKUP(E46,[1]전자계약!A:B,2,FALSE) -> 일괄 전자계약 | E46: 2030338111 | F46: 64 | G46: 819500 | H46: 163900 | I46: 87500 | K46: 0 | L46: 0 | M46: 0 | O46: 163900 | P46: 149000 | Q46: 14900 | R46: 743100
B47: 37 | C47: private100 | D47: =VLOOKUP(E47,[1]전자계약!A:B,2,FALSE) -> 일괄 전자계약 | E47: 4208700525 | F47: 1 | G47: 29800 | H47: 4470 | K47: 0 | L47: 0 | M47: 0 | O47: 4470 | P47: 4063 | Q47: 407 | R47: 25330
B48: 38 | C48: XM(엑스엠) | D48: =VLOOKUP(E48,[1]전자계약!A:B,2,FALSE) -> 일괄 전자계약 | E48: 1303429244 | F48: 1 | G48: 66000 | H48: 9900 | K48: 0 | L48: 0 | M48: 0 | O48: 9900 | P48: 9000 | Q48: 900 | R48: 56100
B49: 39 | C49: 간지나라 | D49: =VLOOKUP(E49,[1]전자계약!A:B,2,FALSE) -> 일괄 전자계약 | E49: 1081188290 | F49: 16 | G49: 110400 | H49: 13248 | I49: 5000 | K49: 0 | L49: 0 | M49: 0 | O49: 13248 | P49: 12043 | Q49: 1205 | R49: 102152
B50: 40 | C50: 더비오유컴퍼니 주식회사 | D50: =VLOOKUP(E50,[1]전자계약!A:B,2,FALSE) -> 일괄 전자계약 | E50: 1958600831 | F50: 57 | G50: 256500 | H50: 32465 | I50: 15000 | K50: 4700 | L50: 2350 | M50: 2350 | O50: 30115 | P50: 27377 | Q50: 2738 | R50: 241385
B51: 41 | C51: 두인 코퍼레이션 | D51: =VLOOKUP(E51,[1]전자계약!A:B,2,FALSE) -> 일괄 전자계약 | E51: 2151478276 | F51: 2 | G51: 49800 | H51: 9960 | I51: 2500 | K51: 0 | L51: 0 | M51: 0 | O51: 9960 | P51: 9054 | Q51: 906 | R51: 42340
B52: 42 | C52: 드레스날다 | D52: =VLOOKUP(E52,[1]전자계약!A:B,2,FALSE) -> 일괄 전자계약 | E52: 2152387888 | F52: 1 | G52: 30900 | H52: 4635 | I52: 2500 | K52: 0 | L52: 0 | M52: 0 | O52: 4635 | P52: 4213 | Q52: 422 | R52: 28765
B53: 43 | C53: 또래친구 주식회사 | D53: =VLOOKUP(E53,[1]전자계약!A:B,2,FALSE) -> 일괄 전자계약 | E53: 1268657527 | F53: 23 | G53: 363700 | H53: 65466 | K53: 0 | L53: 0 | M53: 0 | O53: 65466 | P53: 59514 | Q53: 5952 | R53: 298234
B54: 44 | C54: 레디코 | D54: =VLOOKUP(E54,[1]전자계약!A:B,2,FALSE) -> 일괄 전자계약 | E54: 1101119103 | F54: 28 | G54: 326900 | H54: 58842 | I54: 12500 | K54: 0 | L54: 0 | M54: 0 | O54: 58842 | P54: 53492 | Q54: 5350 | R54: 280558
B55: 45 | C55: 민영상사 | D55: =VLOOKUP(E55,[1]전자계약!A:B,2,FALSE) -> 일괄 전자계약 | E55: 2110532844 | F55: 4 | G55: 52200 | H55: 6264 | K55: 0 | L55: 0 | M55: 0 | O55: 6264 | P55: 5694 | Q55: 570 | R55: 45936
B56: 46 | C56: 바나나팜스 | D56: =VLOOKUP(E56,[1]전자계약!A:B,2,FALSE) -> 일괄 전자계약 | E56: 1011231435 | F56: 5 | G56: 132000 | H56: 23760 | I56: 10000 | K56: 0 | L56: 0 | M56: 0 | O56: 23760 | P56: 21600 | Q56: 2160 | R56: 118240
B57: 47 | C57: 바블링브룩 | D57: =VLOOKUP(E57,[1]전자계약!A:B,2,FALSE) -> 일괄 전자계약 | E57: 2042725541 | F57: 1 | G57: 100 | H57: -198 | I57: 5000 | K57: -1200 | L57: -792 | M57: -408 | O57: 210 | P57: 190 | Q57: 20 | R57: 4890
B58: 48 | C58: 비전트리 | D58: =VLOOKUP(E58,[1]전자계약!A:B,2,FALSE) -> 일괄 전자계약 | E58: 1200985062 | F58: 1 | G58: 129000 | H58: 19350 | K58: 0 | L58: 0 | M58: 0 | O58: 19350 | P58: 17590 | Q58: 1760 | R58: 109650
B59: 49 | C59: 스타일도매 | D59: =VLOOKUP(E59,[1]전자계약!A:B,2,FALSE) -> 일괄 전자계약 | E59: 1221494974 | F59: 10 | G59: 86800 | H59: 17360 | I59: 2500 | K59: 0 | L59: 0 | M59: 0 | O59: 17360 | P59: 15781 | Q59: 1579 | R59: 71940
B60: 50 | C60: 시장닷컴 | D60: =VLOOKUP(E60,[1]전자계약!A:B,2,FALSE) -> 일괄 전자계약 | E60: 2158620451 | F60: 1 | G60: 49800 | H60: 7470 | K60: 0 | L60: 0 | M60: 0 | O60: 7470 | P60: 6790 | Q60: 680 | R60: 42330
B61: 51 | C61: 신사야(2011724447) | D61: =VLOOKUP(E61,[1]전자계약!A:B,2,FALSE) -> 일괄 전자계약 | E61: 2011724447 | F61: 4 | G61: 141800 | H61: 28360 | I61: 7500 | K61: 0 | L61: 0 | M61: 0 | O61: 28360 | P61: 25781 | Q61: 2579 | R61: 120940
B62: 52 | C62: 아쿠아밸유(aquavalue) | D62: =VLOOKUP(E62,[1]전자계약!A:B,2,FALSE) -> 일괄 전자계약 | E62: 6101861551 | F62: 15 | G62: 164190 | H62: 18960 | I62: 2500 | K62: 15910 | L62: 0 | M62: 15910 | O62: 3050 | P62: 2772 | Q62: 278 | R62: 163640
B63: 53 | C63: 웰파코리아(주) | D63: =VLOOKUP(E63,[1]전자계약!A:B,2,FALSE) -> 일괄 전자계약 | E63: 2898101178 | F63: 5 | G63: 53500 | H63: 10700 | K63: 0 | L63: 0 | M63: 0 | O63: 10700 | P63: 9727 | Q63: 973 | R63: 42800
B64: 54 | C64: 이프랜드 | D64: =VLOOKUP(E64,[1]전자계약!A:B,2,FALSE) -> 일괄 전자계약 | E64: 1273210482 | F64: 5 | G64: 49500 | H64: 7425 | I64: 7500 | K64: 0 | L64: 0 | M64: 0 | O64: 7425 | P64: 6750 | Q64: 675 | R64: 49575
B65: 55 | C65: 제이케이어패럴 주식회사 | D65: =VLOOKUP(E65,[1]전자계약!A:B,2,FALSE) -> 일괄 전자계약 | E65: 4828800404 | F65: 12 | G65: 77800 | H65: 14004 | I65: 2500 | K65: 0 | L65: 0 | M65: 0 | O65: 14004 | P65: 12730 | Q65: 1274 | R65: 66296
B66: 56 | C66: ㈜셀러허브 | D66: =VLOOKUP(E66,[1]전자계약!A:B,2,FALSE) -> 일괄 전자계약 | E66: 2118881810 | F66: 692 | G66: 9295700 | H66: 1037212 | I66: 421000 | K66: 133480 | L66: 84337.8 | M66: 49142.2 | O66: 988070 | P66: 898245 | Q66: 89825 | R66: 8728630
B67: 57 | C67: 주식회사 넥시스코어 | D67: =VLOOKUP(E67,[1]전자계약!A:B,2,FALSE) -> 일괄 전자계약 | E67: 1328617286 | F67: 4 | G67: 71000 | H67: 10650 | I67: 5500 | K67: 0 | L67: 0 | M67: 0 | O67: 10650 | P67: 9681 | Q67: 969 | R67: 65850
B68: 58 | C68: 주식회사 뉴키즈온 | D68: =VLOOKUP(E68,[1]전자계약!A:B,2,FALSE) -> 일괄 전자계약 | E68: 2018632899 | F68: 403 | G68: 6512420 | H68: 840233 | I68: 62000 | K68: 442680 | L68: 358290 | M68: 84390 | O68: 755843 | P68: 687130 | Q68: 68713 | R68: 5818577
B69: 59 | C69: 주식회사 상보아이엔티 | D69: =VLOOKUP(E69,[1]전자계약!A:B,2,FALSE) -> 일괄 전자계약 | E69: 2768700423 | F69: 5 | G69: 49500 | H69: 4950 | I69: 7500 | K69: 0 | L69: 0 | M69: 0 | O69: 4950 | P69: 4500 | Q69: 450 | R69: 52050
B70: 60 | C70: 주식회사 아들과딸 | D70: =VLOOKUP(E70,[1]전자계약!A:B,2,FALSE) -> 일괄 전자계약 | E70: 1218620758 | F70: 1 | G70: 108000 | H70: 16200 | K70: 0 | L70: 0 | M70: 0 | O70: 16200 | P70: 14727 | Q70: 1473 | R70: 91800
B71: 61 | C71: 주식회사 알유진코리아 | D71: =VLOOKUP(E71,[1]전자계약!A:B,2,FALSE) -> 일괄 전자계약 | E71: 2068649944 | F71: 234 | G71: 3159500 | H71: 400488 | K71: 177900 | L71: 160747 | M71: 17153 | O71: 383335 | P71: 348486 | Q71: 34849 | R71: 2776165
B72: 62 | C72: 주식회사 야벳 | D72: =VLOOKUP(E72,[1]전자계약!A:B,2,FALSE) -> 일괄 전자계약 | E72: 5238100142 | F72: 19 | G72: 199390 | H72: 39846 | K72: 8410 | L72: 2225 | M72: 6185 | O72: 33661 | P72: 30600 | Q72: 3061 | R72: 165729
B73: 63 | C73: 주식회사 에이블에이치 | D73: =VLOOKUP(E73,[1]전자계약!A:B,2,FALSE) -> 일괄 전자계약 | E73: 2098159714 | F73: 160 | G73: 2595400 | H73: 402254 | I73: 90000 | K73: 213100 | L73: 213100 | M73: 0 | O73: 402254 | P73: 365685 | Q73: 36569 | R73: 2283146
B74: 64 | C74: 주식회사 에포드 | D74: =VLOOKUP(E74,[1]전자계약!A:B,2,FALSE) -> 일괄 전자계약 | E74: 1278647944 | F74: 94 | G74: 1718230 | H74: 272344 | I74: 21500 | K74: 33170 | L74: 33170 | M74: 0 | O74: 272344 | P74: 247585 | Q74: 24759 | R74: 1467386
B75: 65 | C75: 주식회사 엠엠마일즈 | D75: =VLOOKUP(E75,[1]전자계약!A:B,2,FALSE) -> 일괄 전자계약 | E75: 7818100734 | F75: 907 | G75: 13310650 | H75: 2125295 | I75: 130000 | K75: 867250 | L75: 474540 | M75: 392710 | O75: 1732585 | P75: 1575077 | Q75: 157508 | R75: 11708065
B76: 66 | C76: 주식회사 영민네트웍스 | D76: =VLOOKUP(E76,[1]전자계약!A:B,2,FALSE) -> 일괄 전자계약 | E76: 1288705416 | F76: 6 | G76: 261600 | H76: 39240 | K76: 0 | L76: 0 | M76: 0 | O76: =ROUND(H76-M76,0) -> 39240 | P76: =INT(O76/1.1) -> 35672 | Q76: =+O76-P76 -> 3568 | R76: =ROUND(+G76+I76-J76-O76-N76,0) -> 222360
B77: 67 | C77: 주식회사 원페이스 | D77: =VLOOKUP(E77,[1]전자계약!A:B,2,FALSE) -> 일괄 전자계약 | E77: 2158676580 | F77: 1 | G77: 12000 | H77: 2400 | I77: 2500 | K77: 0 | L77: 0 | M77: 0 | O77: 2400 | P77: 2181 | Q77: 219 | R77: 12100
B78: 68 | C78: 주식회사 웹이즈 | D78: =VLOOKUP(E78,[1]전자계약!A:B,2,FALSE) -> 일괄 전자계약 | E78: 4108177985 | F78: 250 | G78: 1223870 | H78: 146869 | I78: 90000 | K78: 0 | L78: 0 | M78: 0 | O78: 146869 | P78: 133517 | Q78: 13352 | R78: 1167001
B79: 69 | C79: 주식회사 이루자 | D79: =VLOOKUP(E79,[1]전자계약!A:B,2,FALSE) -> 일괄 전자계약 | E79: 1228634629 | F79: 3 | G79: 173300 | H79: 25995 | K79: 0 | L79: 0 | M79: 0 | O79: 25995 | P79: 23631 | Q79: 2364 | R79: 147305
B80: 70 | C80: 주식회사 자야 | D80: =VLOOKUP(E80,[1]전자계약!A:B,2,FALSE) -> 일괄 전자계약 | E80: 1378610537 | F80: 14 | G80: 229600 | H80: 41328 | I80: 5000 | K80: 0 | L80: 0 | M80: 0 | O80: 41328 | P80: 37570 | Q80: 3758 | R80: 193272
B81: 71 | C81: 주식회사 제이앤제이컴퍼니 | D81: =VLOOKUP(E81,[1]전자계약!A:B,2,FALSE) -> 일괄 전자계약 | E81: 4208700734 | F81: 32 | G81: 397600 | H81: 59640 | K81: 0 | L81: 0 | M81: 0 | O81: 59640 | P81: 54218 | Q81: 5422 | R81: 337960
B82: 72 | C82: 주식회사 지오 | D82: =VLOOKUP(E82,[1]전자계약!A:B,2,FALSE) -> 일괄 전자계약 | E82: 2338102311 | F82: 7 | G82: 294200 | H82: 23536 | K82: 0 | L82: 0 | M82: 0 | O82: 23536 | P82: 21396 | Q82: 2140 | R82: 270664
B83: 73 | C83: 주식회사 탑보이 | D83: =VLOOKUP(E83,[1]전자계약!A:B,2,FALSE) -> 일괄 전자계약 | E83: 2048647538 | F83: 60 | G83: 1192440 | H83: 229700 | I83: 20000 | K83: 126760 | L83: 126760 | M83: 0 | O83: 229700 | P83: 208818 | Q83: 20882 | R83: 982740
B84: 74 | C84: 주식회사 태평누리 | D84: =VLOOKUP(E84,[1]전자계약!A:B,2,FALSE) -> 일괄 전자계약 | E84: 1898700338 | F84: 118 | G84: 669460 | H84: 117062 | I84: 39000 | K84: 19140 | L84: 17300 | M84: 1840 | O84: 115222 | P84: 104747 | Q84: 10475 | R84: 593238
B85: 75 | C85: 주식회사 토마토팩토리 | D85: =VLOOKUP(E85,[1]전자계약!A:B,2,FALSE) -> 일괄 전자계약 | E85: 8718600143 | F85: 2 | G85: 41800 | H85: 8360 | K85: 0 | L85: 0 | M85: 0 | O85: 8360 | P85: 7600 | Q85: 760 | R85: 33440
B86: 76 | C86: 주식회사 트랜드이십일 | D86: =VLOOKUP(E86,[1]전자계약!A:B,2,FALSE) -> 일괄 전자계약 | E86: 1388129408 | F86: 5 | G86: 35000 | H86: 4550 | I86: 2500 | K86: 0 | L86: 0 | M86: 0 | O86: 4550 | P86: 4136 | Q86: 414 | R86: 32950
B87: 77 | C87: 주식회사 페이퍼플레인키즈 | D87: =VLOOKUP(E87,[1]전자계약!A:B,2,FALSE) -> 일괄 전자계약 | E87: 6078612693 | F87: 3 | G87: 74700 | H87: 11205 | K87: 0 | L87: 0 | M87: 0 | O87: 11205 | P87: 10186 | Q87: 1019 | R87: 63495
B88: 78 | C88: 주식회사 피엠제이인터네셔널 | D88: =VLOOKUP(E88,[1]전자계약!A:B,2,FALSE) -> 일괄 전자계약 | E88: 7328100921 | F88: 8 | G88: 127200 | H88: 6360 | I88: 10000 | K88: 0 | L88: 0 | M88: 0 | O88: 6360 | P88: 5781 | Q88: 579 | R88: 130840
B89: 79 | C89: 주식회사 해리슨 | D89: =VLOOKUP(E89,[1]전자계약!A:B,2,FALSE) -> 일괄 전자계약 | E89: 1378641933 | F89: 5 | G89: 205200 | H89: 45510 | K89: 0 | L89: 0 | M89: 0 | O89: 45510 | P89: 41372 | Q89: 4138 | R89: 159690
B90: 80 | C90: 주식회사샵앤 | D90: =VLOOKUP(E90,[1]전자계약!A:B,2,FALSE) -> 일괄 전자계약 | E90: 1638101293 | F90: 18 | G90: 390500 | H90: 70290 | K90: 0 | L90: 0 | M90: 0 | O90: 70290 | P90: 63900 | Q90: 6390 | R90: 320210
B91: 81 | C91: 지큐 | D91: =VLOOKUP(E91,[1]전자계약!A:B,2,FALSE) -> 일괄 전자계약 | E91: 2091163613 | F91: 1 | G91: 12800 | H91: 2304 | K91: 0 | L91: 0 | M91: 0 | O91: 2304 | P91: 2094 | Q91: 210 | R91: 10496
B92: 82 | C92: 쿠비카 | D92: =VLOOKUP(E92,[1]전자계약!A:B,2,FALSE) -> 일괄 전자계약 | E92: 2110748466 | F92: 3 | G92: 90800 | H92: 18835 | I92: 2500 | K92: 0 | L92: 0 | M92: 0 | O92: 18835 | P92: 17122 | Q92: 1713 | R92: 74465
B93: 83 | C93: 키드스토어 | D93: =VLOOKUP(E93,[1]전자계약!A:B,2,FALSE) -> 일괄 전자계약 | E93: 2122523860 | F93: 10 | G93: 258000 | H93: 38700 | K93: 0 | L93: 0 | M93: 0 | O93: 38700 | P93: 35181 | Q93: 3519 | R93: 219300
B94: 84 | C94: 태광유통 | D94: =VLOOKUP(E94,[1]전자계약!A:B,2,FALSE) -> 일괄 전자계약 | E94: 4020368231 | F94: 32 | G94: 189600 | H94: 26544 | I94: 7500 | K94: 0 | L94: 0 | M94: 0 | O94: 26544 | P94: 24130 | Q94: 2414 | R94: 170556
B95: 85 | C95: 튀는망치 | D95: =VLOOKUP(E95,[1]전자계약!A:B,2,FALSE) -> 일괄 전자계약 | E95: 1100734349 | F95: 4 | G95: 27200 | H95: 4080 | I95: 7500 | K95: 0 | L95: 0 | M95: 0 | O95: 4080 | P95: 3709 | Q95: 371 | R95: 30620
B96: 86 | C96: 티티진 | D96: =VLOOKUP(E96,[1]전자계약!A:B,2,FALSE) -> 일괄 전자계약 | E96: 1274281098 | F96: 1 | G96: 19800 | H96: 3960 | I96: 2500 | K96: 0 | L96: 0 | M96: 0 | O96: 3960 | P96: 3600 | Q96: 360 | R96: 18340
B97: 87 | C97: 플레이몰 | D97: =VLOOKUP(E97,[1]전자계약!A:B,2,FALSE) -> 일괄 전자계약 | E97: 1313518280 | F97: 11 | G97: 69900 | H97: 12582 | K97: 0 | L97: 0 | M97: 0 | O97: 12582 | P97: 11438 | Q97: 1144 | R97: 57318
B98: 88 | C98: 하이지비 | D98: =VLOOKUP(E98,[1]전자계약!A:B,2,FALSE) -> 일괄 전자계약 | E98: 2090966086 | F98: 25 | G98: 300800 | H98: 45120 | K98: 0 | L98: 0 | M98: 0 | O98: 45120 | P98: 41018 | Q98: 4102 | R98: 255680
B99: 89 | C99: 한세드림 | D99: =VLOOKUP(E99,[1]전자계약!A:B,2,FALSE) -> 일괄 전자계약 | E99: 1058628379 | F99: 139923 | G99: 2224912280 | H99: 785949578 | K99: 20737370 | L99: 0 | M99: 20737370 | O99: 765212208 | P99: 695647461 | Q99: 69564747 | R99: 1459700072
B100: 90 | C100: 호림 jewelry | D100: =VLOOKUP(E100,[1]전자계약!A:B,2,FALSE) -> 일괄 전자계약 | E100: 1010632210 | F100: 1 | G100: 19000 | H100: 1900 | K100: 0 | L100: 0 | M100: 0 | O100: 1900 | P100: 1727 | Q100: 173 | R100: 17100
B101: 91 | C101: 화진유통 | D101: =VLOOKUP(E101,[1]전자계약!A:B,2,FALSE) -> 일괄 전자계약 | E101: 3904200112 | F101: 30 | G101: 1805760 | H101: 270864 | I101: 2500 | K101: 0 | L101: 0 | M101: 0 | O101: 270864 | P101: 246240 | Q101: 24624 | R101: 1537396
B102: 92 | C102: 흥규컴퍼니 | D102: =VLOOKUP(E102,[1]전자계약!A:B,2,FALSE) -> 일괄 전자계약 | E102: 2120932660 | F102: 4 | G102: 36600 | H102: 6588 | K102: 0 | L102: 0 | M102: 0 | O102: 6588 | P102: 5989 | Q102: 599 | R102: 30012
C105: 총합계 | F105: =SUM(F11:F104) -> 175021 | G105: 2840320837 | H105: 985679520 | I105: 2583500 | J105: 0 | K105: 34558030 | L105: 4372987.5 | M105: 30185042.5 | N105: 0 | O105: 955494478 | P105: 868631302 | Q105: 86863176 | R105: 1887409859
C113: 2020년 9월 상품판매대금 및 배송비 정산 리스트-입점(YES24)-미수금
B115: no | C115: 거 래 처 | D115: 전자계약 | E115: 사업자등록번호 | F115: 판매수량 | G115: 실판매매출(상품총액) | H115: 수 수 료(차감) | I115: 배 송 비 | J115: 미수금회수 | K115: 쿠폰사용금액 | L115: 업체분담분 | M115: 자사분담분 | N115: 기타공제 | O115: 계산서발행액 | P115: 공급가액 | Q115: 세액 | R115: 검산
B116: 93 | C116: 패션라인 | D116: 일괄 전자계약 | E116: 2061624391 | F116: -1 | G116: -21800 | H116: -5450 | K116: 0 | L116: 0 | M116: 0 | O116: -5450 | P116: -4955 | Q116: -495 | R116: -16350
C118: 총합계 | F118: =+F116 -> -1 | G118: -21800 | H118: -5450 | I118: 0 | J118: 0 | K118: 0 | L118: 0 | M118: 0 | N118: 0 | O118: -5450 | P118: -4955 | Q118: -495 | R118: -16350
C123: 2020년 9월 상품판매대금 및 배송비 정산 리스트-입점(YES24)-보류
B125: no | C125: 거 래 처 | D125: 전자계약 | E125: 사업자등록번호 | F125: 판매수량 | G125: 실판매매출(상품총액) | H125: 수 수 료(차감) | I125: 배 송 비 | J125: 미수금회수 | K125: 쿠폰사용금액 | L125: 업체분담분 | M125: 자사분담분 | N125: 기타공제 | O125: 계산서발행액 | P125: 공급가액 | Q125: 세액 | R125: 검산
B126: 94 | C126: I&C GLOBAL | E126: 1190909822 | F126: 1 | G126: 18500 | H126: 2220 | K126: 0 | L126: 0 | M126: 0 | O126: 2220 | P126: 2018 | Q126: 202 | R126: 16280
B127: 95 | C127: 왕미 비어체스터 | E127: 2154300652 | F127: 3 | G127: 50400 | H127: 6048 | I127: 5000 | K127: 0 | L127: 0 | M127: 0 | O127: 6048 | P127: 5498 | Q127: 550 | R127: 49352
B128: 96 | C128: 이월드쥬얼리 | E128: 6788501134 | F128: 64 | G128: 464160 | H128: 87642 | I128: 77500 | K128: 22740 | L128: 22740 | M128: 0 | O128: 87642 | P128: 79674 | Q128: 7968 | R128: 454018
C131: 총합계 | F131: =SUM(F126:F130) -> 68 | G131: =SUM(G126:G130) -> 533060 | H131: 95910 | I131: 82500 | J131: 0 | K131: 22740 | L131: 22740 | M131: 0 | N131: 0 | O131: 95910 | P131: 87190 | Q131: 8720 | R131: 454018

Sheet SCM
B2: 6. seller-SCM
B4: 실제 계산서 발행금액 조회되도록.
B6: SCM -> 정산완료조회
B7: BOS와 동일 메뉴 사용
B34: 정산확정 합계에 표시되는 공급가 총액 / 세액 총액 / 세금계산서 발행금액(VAT 포함) -> BOS 정산 시 사용하는 [정산완료조회] 메뉴와 같은 값이 뜨도록.
B36: ① 세금계산서 발행금액(VAT포함) -> 수식 변경 : = round(수수료-자사분담액, 0)
B38: ② 공급가 총액 -> 수식 변경 : = int(A/1.1)
B40: ③ 세액 총액 -> 수식 변경 : = A - B
B42: ④ 정산 기준월에 따른 미수금 및 기타차감 금액 요약 표시
B43: -> 업체가 미수금 or 기타차감내용을 확인할 수 있으면 좋겠습니다.
